[Event "Titled Tuesday Blitz April 4 Late 2023"]
[White "Gontcharov, Vladislav"]
[Black "Veiga, Jose Francisco R P Neves"]
[WhiteFideId "4123492"]
[BlackFideId "1930087"]
[WhiteElo "2420"]
[BlackElo "2320"]
[Result "1-0"]
[Round "06"]
[TimeControl "180+2"]
[Date "2023.04.04"]
[WhiteClock "0:00:30"]
[BlackClock "0:00:51"]

1. d4 {[%clk 0:03:00]}  Nc6 {[%clk 0:02:58]} 2. Nf3 {[%clk 0:02:53]}  d6 {[%clk 0:02:56]} 3. e4 {[%clk 0:02:52]}  g6 {[%clk 0:02:55]} 4. d5 {[%clk 0:02:37]}  Ne5 {[%clk 0:02:54]} 5. Nxe5 {[%clk 0:02:37]}  dxe5 {[%clk 0:02:55]} 6. Bc4 {[%clk 0:02:34]}  Bg7 {[%clk 0:02:54]} 7. O-O {[%clk 0:02:33]}  Nf6 {[%clk 0:02:55]} 8. Nc3 {[%clk 0:02:28]}  O-O {[%clk 0:02:55]} 9. Bg5 {[%clk 0:02:25]}  Ne8 {[%clk 0:02:54]} 10. Qe2 {[%clk 0:02:12]}  h6 {[%clk 0:02:53]} 11. Bh4 {[%clk 0:02:09]}  Nd6 {[%clk 0:02:53]} 12. Bd3 {[%clk 0:02:08]}  g5 {[%clk 0:02:35]} 13. Bg3 {[%clk 0:02:07]}  e6 {[%clk 0:02:36]} 14. Rfd1 {[%clk 0:01:51]}  exd5 {[%clk 0:02:36]} 15. Nxd5 {[%clk 0:01:51]}  Be6 {[%clk 0:02:34]} 16. Ne3 {[%clk 0:01:51]}  Qf6 {[%clk 0:02:30]} 17. b4 {[%clk 0:01:45]}  Rad8 {[%clk 0:02:28]} 18. c4 {[%clk 0:01:44]}  Qg6 {[%clk 0:02:22]} 19. f3 {[%clk 0:01:44]}  f5 {[%clk 0:02:21]} 20. Nd5 {[%clk 0:01:40]}  Qf7 {[%clk 0:02:02]} 21. exf5 {[%clk 0:01:28]}  Bxf5 {[%clk 0:02:00]} 22. Rac1 {[%clk 0:01:25]}  c6 {[%clk 0:01:58]} 23. Ne3 {[%clk 0:01:24]}  Bxd3 {[%clk 0:01:54]} 24. Rxd3 {[%clk 0:01:23]}  Nf5 {[%clk 0:01:50]} 25. Nxf5 {[%clk 0:01:19]}  Qxf5 {[%clk 0:01:50]} 26. Rcd1 {[%clk 0:01:18]}  Rxd3 {[%clk 0:01:50]} 27. Qxd3 {[%clk 0:01:18]}  Qe6 {[%clk 0:01:44]} 28. Qe4 {[%clk 0:01:12]}  Rf7 {[%clk 0:01:32]} 29. h3 {[%clk 0:01:10]}  h5 {[%clk 0:01:15]} 30. Kh2 {[%clk 0:01:03]}  h4 {[%clk 0:01:13]} 31. Rd8+ {[%clk 0:01:01]}  Rf8 {[%clk 0:01:07]} 32. Rxf8+ {[%clk 0:00:59]}  Kxf8 {[%clk 0:01:08]} 33. Bf2 {[%clk 0:00:58]}  a6 {[%clk 0:01:06]} 34. a4 {[%clk 0:00:43]}  Kf7 {[%clk 0:01:07]} 35. b5 {[%clk 0:00:43]}  axb5 {[%clk 0:01:06]} 36. cxb5 {[%clk 0:00:42]}  Qg6 {[%clk 0:00:41]} 37. Qxg6+ {[%clk 0:00:39]}  Kxg6 {[%clk 0:00:38]} 38. bxc6 {[%clk 0:00:39]}  bxc6 {[%clk 0:00:35]} 39. a5 {[%clk 0:00:39]}  e4 {[%clk 0:00:35]} 40. fxe4 {[%clk 0:00:39]}  Be5+ {[%clk 0:00:35]} 41. Kh1 {[%clk 0:00:35]}  Bb8 {[%clk 0:00:33]} 42. a6 {[%clk 0:00:35]}  Kf6 {[%clk 0:00:34]} 43. a7 {[%clk 0:00:34]}  Bxa7 {[%clk 0:00:35]} 44. Bxa7 {[%clk 0:00:33]}  Ke5 {[%clk 0:00:36]} 45. Be3 {[%clk 0:00:33]}  Kxe4 {[%clk 0:00:36]} 46. Bxg5 {[%clk 0:00:33]}  c5 {[%clk 0:00:35]} 47. Bxh4 {[%clk 0:00:33]}  c4 {[%clk 0:00:36]} 48. Bf6 {[%clk 0:00:33]}  Kf5 {[%clk 0:00:37]} 49. Bc3 {[%clk 0:00:33]}  Ke4 {[%clk 0:00:38]} 50. Kh2 {[%clk 0:00:33]}  Kd3 {[%clk 0:00:38]} 51. Bg7 {[%clk 0:00:32]}  Ke4 {[%clk 0:00:39]} 52. Kg3 {[%clk 0:00:32]}  Kf5 {[%clk 0:00:40]} 53. Kf3 {[%clk 0:00:30]}  Kg6 {[%clk 0:00:41]} 54. Bc3 {[%clk 0:00:30]}  Kh5 {[%clk 0:00:42]} 55. g3 {[%clk 0:00:29]}  Kg6 {[%clk 0:00:43]} 56. Kg4 {[%clk 0:00:29]}  Kh7 {[%clk 0:00:44]} 57. Kg5 {[%clk 0:00:29]}  Kg8 {[%clk 0:00:45]} 58. Kg6 {[%clk 0:00:29]}  Kf8 {[%clk 0:00:45]} 59. h4 {[%clk 0:00:29]}  Kg8 {[%clk 0:00:46]} 60. h5 {[%clk 0:00:29]}  Kf8 {[%clk 0:00:46]} 61. h6 {[%clk 0:00:29]}  Kg8 {[%clk 0:00:47]} 62. h7+ {[%clk 0:00:29]}  Kf8 {[%clk 0:00:48]} 63. h8=Q+ {[%clk 0:00:30]}  Ke7 {[%clk 0:00:49]} 64. Qe5+ {[%clk 0:00:30]}  Kd7 {[%clk 0:00:49]} 65. Kf7 {[%clk 0:00:29]}  Kc6 {[%clk 0:00:50]} 66. Ke7 {[%clk 0:00:30]}  Kb6 {[%clk 0:00:50]} 67. Kd7 {[%clk 0:00:30]}  Ka6 {[%clk 0:00:51]} 68. Kc7 {[%clk 0:00:30]}  Ka7 {[%clk 0:00:51]} 69. Qa5# {[%clk 0:00:30]} 1-0


[Site "https://www.chess.com"]

[Event "Titled Tuesday Blitz April 4 Late 2023"]
[White "koncheto"]
[Black "Annaberdiyev, Meylis"]
[BlackFideId "14000563"]
[WhiteElo "2534"]
[BlackElo "2416"]
[Result "1/2-1/2"]
[Round "06"]
[TimeControl "180+2"]
[Date "2023.04.04"]
[WhiteClock "0:00:02"]
[BlackClock "0:00:05"]

1. e4 {[%clk 0:02:48]}  c5 {[%clk 0:02:59]} 2. Nf3 {[%clk 0:02:47]}  e6 {[%clk 0:03:00]} 3. d4 {[%clk 0:02:47]}  cxd4 {[%clk 0:03:01]} 4. Nxd4 {[%clk 0:02:48]}  Nc6 {[%clk 0:03:01]} 5. Nc3 {[%clk 0:02:48]}  Qc7 {[%clk 0:03:01]} 6. Be3 {[%clk 0:02:44]}  a6 {[%clk 0:03:01]} 7. Nxc6 {[%clk 0:02:44]}  Qxc6 {[%clk 0:02:55]} 8. f4 {[%clk 0:02:45]}  b5 {[%clk 0:02:54]} 9. Bd3 {[%clk 0:02:44]}  Bb7 {[%clk 0:02:53]} 10. O-O {[%clk 0:02:44]}  Nf6 {[%clk 0:02:46]} 11. a3 {[%clk 0:02:44]}  h5 {[%clk 0:02:21]} 12. h3 {[%clk 0:02:33]}  Bc5 {[%clk 0:02:19]} 13. Qf3 {[%clk 0:02:32]}  Rc8 {[%clk 0:01:58]} 14. Kh1 {[%clk 0:02:04]}  h4 {[%clk 0:01:40]} 15. f5 {[%clk 0:02:00]}  Bxe3 {[%clk 0:01:17]} 16. Qxe3 {[%clk 0:01:58]}  Nh5 {[%clk 0:01:17]} 17. Kh2 {[%clk 0:01:20]}  Qc5 {[%clk 0:01:11]} 18. Qg5 {[%clk 0:01:17]}  Qe5+ {[%clk 0:01:11]} 19. Kg1 {[%clk 0:01:15]}  Ng3 {[%clk 0:00:53]} 20. Rf4 {[%clk 0:01:04]}  Qf6 {[%clk 0:00:16]} 21. Qxf6 {[%clk 0:01:02]}  gxf6 {[%clk 0:00:17]} 22. fxe6 {[%clk 0:01:03]}  fxe6 {[%clk 0:00:12]} 23. Rxf6 {[%clk 0:01:03]}  Ke7 {[%clk 0:00:13]} 24. Rf2 {[%clk 0:00:48]}  Rcf8 {[%clk 0:00:13]} 25. Ne2 {[%clk 0:00:48]}  Rxf2 {[%clk 0:00:11]} 26. Kxf2 {[%clk 0:00:49]}  Rf8+ {[%clk 0:00:12]} 27. Ke3 {[%clk 0:00:50]}  Rg8 {[%clk 0:00:09]} 28. Nxg3 {[%clk 0:00:46]}  Rxg3+ {[%clk 0:00:09]} 29. Kf2 {[%clk 0:00:47]}  Kf6 {[%clk 0:00:08]} 30. Re1 {[%clk 0:00:47]}  Ke5 {[%clk 0:00:09]} 31. Re3 {[%clk 0:00:47]}  Rg7 {[%clk 0:00:08]} 32. b4 {[%clk 0:00:16]}  Rf7+ {[%clk 0:00:08]} 33. Rf3 {[%clk 0:00:15]}  Rg7 {[%clk 0:00:08]} 34. Re3 {[%clk 0:00:14]}  Bc6 {[%clk 0:00:08]} 35. c4 {[%clk 0:00:12]}  Kd4 {[%clk 0:00:09]} 36. cxb5 {[%clk 0:00:11]}  axb5 {[%clk 0:00:09]} 37. Be2 {[%clk 0:00:09]}  Rxg2+ {[%clk 0:00:08]} 38. Kxg2 {[%clk 0:00:07]}  Kxe3 {[%clk 0:00:09]} 39. Bh5 {[%clk 0:00:05]}  Bxe4+ {[%clk 0:00:09]} 40. Kf1 {[%clk 0:00:06]}  d5 {[%clk 0:00:09]} 41. Be8 {[%clk 0:00:05]}  Bd3+ {[%clk 0:00:09]} 42. Kg2 {[%clk 0:00:04]}  d4 {[%clk 0:00:08]} 43. a4 {[%clk 0:00:04]}  bxa4 {[%clk 0:00:09]} 44. Bxa4 {[%clk 0:00:05]}  Bc4 {[%clk 0:00:08]} 45. b5 {[%clk 0:00:05]}  d3 {[%clk 0:00:07]} 46. b6 {[%clk 0:00:05]}  d2 {[%clk 0:00:07]} 47. Kg1 {[%clk 0:00:04]}  Bd5 {[%clk 0:00:08]} 48. Kf1 {[%clk 0:00:03]}  e5 {[%clk 0:00:08]} 49. Kg1 {[%clk 0:00:03]}  e4 {[%clk 0:00:08]} 50. Kf1 {[%clk 0:00:03]}  Kd3 {[%clk 0:00:08]} 51. Bd1 {[%clk 0:00:03]}  e3 {[%clk 0:00:08]} 52. Be2+ {[%clk 0:00:03]}  Kc3 {[%clk 0:00:09]} 53. Bd1 {[%clk 0:00:03]}  Bb7 {[%clk 0:00:07]} 54. Ke2 {[%clk 0:00:03]}  Kd4 {[%clk 0:00:07]} 55. Bc2 {[%clk 0:00:04]}  Ba6+ {[%clk 0:00:07]} 56. Kf3 {[%clk 0:00:03]}  e2 {[%clk 0:00:06]} 57. b7 {[%clk 0:00:02]}  Bxb7+ {[%clk 0:00:06]} 58. Kxe2 {[%clk 0:00:03]}  Kc3 {[%clk 0:00:07]} 59. Bf5 {[%clk 0:00:02]}  Ba6+ {[%clk 0:00:06]} 60. Kd1 {[%clk 0:00:02]}  Bd3 {[%clk 0:00:06]} 61. Bxd3 {[%clk 0:00:02]}  Kxd3 {[%clk 0:00:05]} 1/2-1/2


[Site "https://www.chess.com"]

[Event "Titled Tuesday Blitz April 4 Late 2023"]
[White "Sieciechowicz, Marcin"]
[Black "Gubajdullin, Alexei"]
[WhiteFideId "1130170"]
[BlackFideId "4141202"]
[WhiteElo "2302"]
[BlackElo "2279"]
[Result "1-0"]
[Round "06"]
[TimeControl "180+2"]
[Date "2023.04.04"]
[WhiteClock "0:00:53"]
[BlackClock "0:00:11"]

1. d4 {[%clk 0:03:00]}  Nf6 {[%clk 0:00:18]} 2. c4 {[%clk 0:02:50]}  g6 {[%clk 0:00:19]} 3. Nc3 {[%clk 0:02:50]}  Bg7 {[%clk 0:00:19]} 4. e4 {[%clk 0:02:50]}  O-O {[%clk 0:00:20]} 5. f3 {[%clk 0:02:50]}  d6 {[%clk 0:00:20]} 6. Be3 {[%clk 0:02:50]}  Nc6 {[%clk 0:00:21]} 7. Nge2 {[%clk 0:02:44]}  a6 {[%clk 0:00:21]} 8. Qd2 {[%clk 0:02:41]}  Rb8 {[%clk 0:00:20]} 9. Rc1 {[%clk 0:02:36]}  e6 {[%clk 0:00:20]} 10. Nd1 {[%clk 0:02:32]}  Bd7 {[%clk 0:00:20]} 11. Nf2 {[%clk 0:02:27]}  b5 {[%clk 0:00:20]} 12. c5 {[%clk 0:02:27]}  d5 {[%clk 0:00:19]} 13. e5 {[%clk 0:02:22]}  Ne8 {[%clk 0:00:19]} 14. h4 {[%clk 0:02:19]}  f6 {[%clk 0:00:19]} 15. f4 {[%clk 0:02:17]}  fxe5 {[%clk 0:00:19]} 16. fxe5 {[%clk 0:02:13]}  Ne7 {[%clk 0:00:19]} 17. g4 {[%clk 0:02:08]}  Bc6 {[%clk 0:00:17]} 18. Nd3 {[%clk 0:02:00]}  Qd7 {[%clk 0:00:16]} 19. h5 {[%clk 0:01:54]}  Rf7 {[%clk 0:00:16]} 20. Bg2 {[%clk 0:01:49]}  Bf8 {[%clk 0:00:16]} 21. Nef4 {[%clk 0:01:33]}  b4 {[%clk 0:00:15]} 22. hxg6 {[%clk 0:01:30]}  hxg6 {[%clk 0:00:15]} 23. Nh3 {[%clk 0:01:24]}  Bb5 {[%clk 0:00:14]} 24. Ng5 {[%clk 0:01:22]}  Rg7 {[%clk 0:00:13]} 25. Nf4 {[%clk 0:01:21]}  Nc6 {[%clk 0:00:10]} 26. Ngxe6 {[%clk 0:01:16]}  Re7 {[%clk 0:00:08]} 27. Nxf8 {[%clk 0:01:15]}  Kxf8 {[%clk 0:00:08]} 28. Nxg6+ {[%clk 0:01:15]}  Kg7 {[%clk 0:00:08]} 29. Nxe7 {[%clk 0:01:12]}  Nxe7 {[%clk 0:00:09]} 30. Bh6+ {[%clk 0:01:10]}  Kf7 {[%clk 0:00:09]} 31. Qf4+ {[%clk 0:01:07]}  Ke6 {[%clk 0:00:10]} 32. Bh3 {[%clk 0:01:02]}  Ng6 {[%clk 0:00:08]} 33. Qf5+ {[%clk 0:00:55]}  Ke7 {[%clk 0:00:09]} 34. Bg5+ {[%clk 0:00:55]}  Nf6 {[%clk 0:00:08]} 35. Qxf6+ {[%clk 0:00:55]}  Ke8 {[%clk 0:00:08]} 36. Qxg6+ {[%clk 0:00:55]}  Kf8 {[%clk 0:00:08]} 37. Qf6+ {[%clk 0:00:55]}  Kg8 {[%clk 0:00:08]} 38. Qg6+ {[%clk 0:00:54]}  Qg7 {[%clk 0:00:09]} 39. Qxg7+ {[%clk 0:00:54]}  Kxg7 {[%clk 0:00:10]} 40. Bf6+ {[%clk 0:00:54]}  Kg6 {[%clk 0:00:10]} 41. Bf1 {[%clk 0:00:54]}  Bd3 {[%clk 0:00:09]} 42. Bxd3+ {[%clk 0:00:54]}  Kf7 {[%clk 0:00:10]} 43. Rh7+ {[%clk 0:00:53]}  Ke6 {[%clk 0:00:11]} 44. Bf5# {[%clk 0:00:53]} 1-0


[Site "https://www.chess.com"]

[Event "Titled Tuesday Blitz April 4 Late 2023"]
[White "Averjanov, Alexey"]
[Black "Meunier-Pion, Jean"]
[WhiteFideId "14109867"]
[BlackFideId "20685327"]
[WhiteElo "2641"]
[BlackElo "2124"]
[Result "0-1"]
[Round "06"]
[TimeControl "180+2"]
[Date "2023.04.04"]
[WhiteClock "0:01:15"]
[BlackClock "0:00:44"]

1. d4 {[%clk 0:03:00]}  d5 {[%clk 0:03:00]} 2. c4 {[%clk 0:03:00]}  c6 {[%clk 0:03:00]} 3. e3 {[%clk 0:03:00]}  Nf6 {[%clk 0:03:00]} 4. Bd3 {[%clk 0:03:00]}  dxc4 {[%clk 0:02:59]} 5. Bxc4 {[%clk 0:03:00]}  Bf5 {[%clk 0:02:59]} 6. Qb3 {[%clk 0:02:59]}  e6 {[%clk 0:02:59]} 7. Qxb7 {[%clk 0:02:59]}  Nbd7 {[%clk 0:03:00]} 8. Nf3 {[%clk 0:02:56]}  Be7 {[%clk 0:02:54]} 9. Qxc6 {[%clk 0:02:54]}  Rc8 {[%clk 0:02:52]} 10. Qa4 {[%clk 0:02:53]}  O-O {[%clk 0:02:51]} 11. Nbd2 {[%clk 0:02:44]}  Nb6 {[%clk 0:02:47]} 12. Qb3 {[%clk 0:02:43]}  Qc7 {[%clk 0:02:43]} 13. Be2 {[%clk 0:02:19]}  Bc2 {[%clk 0:02:28]} 14. Qb5 {[%clk 0:02:16]}  Ba4 {[%clk 0:02:28]} 15. Qa6 {[%clk 0:01:57]}  Qxc1+ {[%clk 0:02:26]} 16. Rxc1 {[%clk 0:01:58]}  Rxc1+ {[%clk 0:02:26]} 17. Bd1 {[%clk 0:01:59]}  Rxd1+ {[%clk 0:02:27]} 18. Ke2 {[%clk 0:01:59]}  Rxh1 {[%clk 0:02:26]} 19. Qxa7 {[%clk 0:02:00]}  Bb5+ {[%clk 0:02:25]} 20. Nc4 {[%clk 0:01:58]}  Bxc4+ {[%clk 0:02:25]} 21. Kd2 {[%clk 0:01:58]}  Bb4+ {[%clk 0:02:18]} 22. Kc2 {[%clk 0:01:56]}  Nbd5 {[%clk 0:02:15]} 23. Ne5 {[%clk 0:01:53]}  Be2 {[%clk 0:01:53]} 24. Kb3 {[%clk 0:01:48]}  Bd1+ {[%clk 0:01:49]} 25. Kc4 {[%clk 0:01:47]}  Rc8+ {[%clk 0:01:46]} 26. Kb5 {[%clk 0:01:47]}  Be2+ {[%clk 0:01:19]} 27. Ka4 {[%clk 0:01:46]}  Rc7 {[%clk 0:01:16]} 28. Qb8+ {[%clk 0:01:45]}  Bf8 {[%clk 0:01:16]} 29. f3 {[%clk 0:01:38]}  Ra1 {[%clk 0:01:12]} 30. e4 {[%clk 0:01:26]}  Bd1+ {[%clk 0:00:51]} 31. Kb5 {[%clk 0:01:19]}  Rxa2 {[%clk 0:00:51]} 32. b4 {[%clk 0:01:18]}  Be2+ {[%clk 0:00:44]} 33. Nc4 {[%clk 0:01:15]}  Bxc4# {[%clk 0:00:44]} 0-1


[Site "https://www.chess.com"]

[Event "Titled Tuesday Blitz April 4 Late 2023"]
[White "Wang, Alexander J"]
[Black "Goroshkov, Maksym"]
[WhiteFideId "30955270"]
[BlackFideId "14142716"]
[WhiteElo "2310"]
[BlackElo "2322"]
[Result "1/2-1/2"]
[Round "06"]
[TimeControl "180+2"]
[Date "2023.04.04"]
[WhiteClock "0:00:19"]
[BlackClock "0:00:57"]

1. e4 {[%clk 0:03:00]}  e5 {[%clk 0:02:58]} 2. Nf3 {[%clk 0:03:00]}  d6 {[%clk 0:02:59]} 3. Bc4 {[%clk 0:03:00]}  Be7 {[%clk 0:02:59]} 4. Nc3 {[%clk 0:03:00]}  Nf6 {[%clk 0:02:59]} 5. d3 {[%clk 0:03:00]}  O-O {[%clk 0:02:59]} 6. h3 {[%clk 0:03:01]}  c5 {[%clk 0:02:59]} 7. Be3 {[%clk 0:03:01]}  Nc6 {[%clk 0:02:59]} 8. Qd2 {[%clk 0:03:00]}  Nd4 {[%clk 0:03:00]} 9. Bxd4 {[%clk 0:02:59]}  cxd4 {[%clk 0:03:01]} 10. Ne2 {[%clk 0:02:59]}  a6 {[%clk 0:03:00]} 11. a4 {[%clk 0:02:59]}  Bd7 {[%clk 0:03:01]} 12. Bb3 {[%clk 0:02:58]}  b5 {[%clk 0:03:00]} 13. axb5 {[%clk 0:02:58]}  axb5 {[%clk 0:03:01]} 14. O-O {[%clk 0:02:57]}  Qc7 {[%clk 0:02:57]} 15. Ng3 {[%clk 0:02:53]}  Be6 {[%clk 0:02:52]} 16. Bxe6 {[%clk 0:02:22]}  fxe6 {[%clk 0:02:53]} 17. Ng5 {[%clk 0:02:16]}  Qd7 {[%clk 0:02:45]} 18. Nf3 {[%clk 0:02:14]}  h6 {[%clk 0:02:41]} 19. c3 {[%clk 0:02:03]}  dxc3 {[%clk 0:02:37]} 20. bxc3 {[%clk 0:02:04]}  Qb7 {[%clk 0:02:33]} 21. Qe3 {[%clk 0:01:59]}  Rxa1 {[%clk 0:02:31]} 22. Rxa1 {[%clk 0:01:59]}  Ra8 {[%clk 0:02:31]} 23. Rxa8+ {[%clk 0:01:58]}  Qxa8 {[%clk 0:02:32]} 24. Qb6 {[%clk 0:01:52]}  Qa1+ {[%clk 0:02:29]} 25. Kh2 {[%clk 0:01:51]}  Qxc3 {[%clk 0:02:29]} 26. Qxb5 {[%clk 0:01:49]}  Kh7 {[%clk 0:02:25]} 27. Qc4 {[%clk 0:01:33]}  Qxc4 {[%clk 0:02:21]} 28. dxc4 {[%clk 0:01:33]}  Kg8 {[%clk 0:02:21]} 29. Kg1 {[%clk 0:01:33]}  Kf8 {[%clk 0:02:21]} 30. Kf1 {[%clk 0:01:31]}  Ke8 {[%clk 0:02:22]} 31. Ke2 {[%clk 0:01:31]}  Kd7 {[%clk 0:02:22]} 32. Kd3 {[%clk 0:01:32]}  Kc6 {[%clk 0:02:23]} 33. Nd2 {[%clk 0:01:31]}  d5 {[%clk 0:02:22]} 34. cxd5+ {[%clk 0:01:30]}  exd5 {[%clk 0:02:23]} 35. exd5+ {[%clk 0:01:29]}  Kxd5 {[%clk 0:02:21]} 36. Nde4 {[%clk 0:01:26]}  Nxe4 {[%clk 0:01:55]} 37. Nxe4 {[%clk 0:01:27]}  Ke6 {[%clk 0:01:55]} 38. Ng3 {[%clk 0:01:23]}  Bh4 {[%clk 0:01:51]} 39. Ne4 {[%clk 0:01:15]}  Kf5 {[%clk 0:01:49]} 40. g3 {[%clk 0:01:13]}  Be7 {[%clk 0:01:48]} 41. f3 {[%clk 0:01:11]}  Bb4 {[%clk 0:01:45]} 42. Kc4 {[%clk 0:01:07]}  Be1 {[%clk 0:01:43]} 43. Kd3 {[%clk 0:01:07]}  h5 {[%clk 0:01:41]} 44. h4 {[%clk 0:01:05]}  g6 {[%clk 0:01:25]} 45. Ke2 {[%clk 0:01:03]}  Bb4 {[%clk 0:01:24]} 46. Kf2 {[%clk 0:01:02]}  Be7 {[%clk 0:01:23]} 47. Ke2 {[%clk 0:01:00]}  Ke6 {[%clk 0:01:21]} 48. Kd3 {[%clk 0:00:58]}  Bb4 {[%clk 0:01:22]} 49. Kc4 {[%clk 0:00:57]}  Ba5 {[%clk 0:01:21]} 50. Kb5 {[%clk 0:00:54]}  Be1 {[%clk 0:01:20]} 51. Kc4 {[%clk 0:00:54]}  Kf5 {[%clk 0:01:20]} 52. Kd3 {[%clk 0:00:54]}  Bxg3 {[%clk 0:01:14]} 53. Nxg3+ {[%clk 0:00:53]}  Kf4 {[%clk 0:01:15]} 54. Ne4 {[%clk 0:00:50]}  Kxf3 {[%clk 0:01:14]} 55. Ng5+ {[%clk 0:00:39]}  Kg4 {[%clk 0:01:11]} 56. Ke4 {[%clk 0:00:39]}  Kxh4 {[%clk 0:01:11]} 57. Nf3+ {[%clk 0:00:39]}  Kg3 {[%clk 0:01:11]} 58. Nxe5 {[%clk 0:00:39]}  h4 {[%clk 0:01:07]} 59. Nf3 {[%clk 0:00:18]}  h3 {[%clk 0:01:04]} 60. Ke3 {[%clk 0:00:18]}  g5 {[%clk 0:01:00]} 61. Nxg5 {[%clk 0:00:17]}  h2 {[%clk 0:01:01]} 62. Ne4+ {[%clk 0:00:17]}  Kg2 {[%clk 0:01:01]} 63. Nf2 {[%clk 0:00:18]}  Kg3 {[%clk 0:00:59]} 64. Ke2 {[%clk 0:00:18]}  Kg2 {[%clk 0:00:58]} 65. Ke1 {[%clk 0:00:18]}  Kg1 {[%clk 0:00:58]} 66. Ke2 {[%clk 0:00:19]}  h1=N {[%clk 0:00:57]} 1/2-1/2


[Site "https://www.chess.com"]

[Event "Titled Tuesday Blitz April 4 Late 2023"]
[White "Buchenau, Frank"]
[Black "Janaszak, Dawid"]
[WhiteFideId "4604350"]
[BlackFideId "1119206"]
[WhiteElo "2157"]
[BlackElo "2220"]
[Result "0-1"]
[Round "06"]
[TimeControl "180+2"]
[Date "2023.04.04"]
[WhiteClock "0:00:01"]
[BlackClock "0:00:19"]

1. e4 {[%clk 0:03:00]}  c5 {[%clk 0:02:59]} 2. Nf3 {[%clk 0:03:00]}  Nc6 {[%clk 0:02:59]} 3. Bb5 {[%clk 0:03:00]}  e5 {[%clk 0:02:58]} 4. O-O {[%clk 0:02:58]}  Nge7 {[%clk 0:02:58]} 5. c3 {[%clk 0:02:54]}  g6 {[%clk 0:02:58]} 6. d4 {[%clk 0:02:53]}  cxd4 {[%clk 0:02:59]} 7. cxd4 {[%clk 0:02:54]}  exd4 {[%clk 0:03:00]} 8. Nxd4 {[%clk 0:02:52]}  Bg7 {[%clk 0:03:00]} 9. Be3 {[%clk 0:02:49]}  O-O {[%clk 0:03:00]} 10. Nc3 {[%clk 0:02:47]}  d5 {[%clk 0:02:59]} 11. exd5 {[%clk 0:02:37]}  Nxd5 {[%clk 0:03:00]} 12. Nxd5 {[%clk 0:02:05]}  Qxd5 {[%clk 0:03:01]} 13. Nxc6 {[%clk 0:01:31]}  Qxb5 {[%clk 0:02:57]} 14. Ne7+ {[%clk 0:01:21]}  Kh8 {[%clk 0:02:57]} 15. Bd4 {[%clk 0:01:19]}  Be6 {[%clk 0:02:42]} 16. Bxg7+ {[%clk 0:01:17]}  Kxg7 {[%clk 0:02:43]} 17. Qd4+ {[%clk 0:01:16]}  f6 {[%clk 0:02:44]} 18. Rfe1 {[%clk 0:01:00]}  Bf7 {[%clk 0:02:44]} 19. a4 {[%clk 0:00:48]}  Qa6 {[%clk 0:02:30]} 20. Rad1 {[%clk 0:00:36]}  Rfe8 {[%clk 0:02:19]} 21. h4 {[%clk 0:00:27]}  Qa5 {[%clk 0:02:00]} 22. b4 {[%clk 0:00:23]}  Qh5 {[%clk 0:01:51]} 23. Re3 {[%clk 0:00:15]}  Rad8 {[%clk 0:01:34]} 24. Qxd8 {[%clk 0:00:14]}  Rxd8 {[%clk 0:01:35]} 25. Rxd8 {[%clk 0:00:13]}  Qxh4 {[%clk 0:01:27]} 26. Rd7 {[%clk 0:00:13]}  Qxb4 {[%clk 0:01:22]} 27. Nd5 {[%clk 0:00:10]}  Qxa4 {[%clk 0:01:10]} 28. Ree7 {[%clk 0:00:09]}  Qd1+ {[%clk 0:00:49]} 29. Kh2 {[%clk 0:00:10]}  Qh5+ {[%clk 0:00:49]} 30. Kg1 {[%clk 0:00:10]}  Qd1+ {[%clk 0:00:47]} 31. Kh2 {[%clk 0:00:10]}  Kh6 {[%clk 0:00:32]} 32. Rxf7 {[%clk 0:00:09]}  Qh5+ {[%clk 0:00:28]} 33. Kg3 {[%clk 0:00:09]}  Qe5+ {[%clk 0:00:28]} 34. Kf3 {[%clk 0:00:09]}  Kg5 {[%clk 0:00:26]} 35. Rxh7 {[%clk 0:00:07]}  f5 {[%clk 0:00:23]} 36. Nf4 {[%clk 0:00:06]}  Qe4+ {[%clk 0:00:19]} 37. Kg3 {[%clk 0:00:06]}  Qxf4+ {[%clk 0:00:20]} 38. Kh3 {[%clk 0:00:06]}  Qxf2 {[%clk 0:00:20]} 39. Rdg7 {[%clk 0:00:03]}  f4 {[%clk 0:00:19]} 40. Rg8 {[%clk 0:00:01]}  Qg3# {[%clk 0:00:19]} 0-1


[Site "https://www.chess.com"]

[Event "Titled Tuesday Blitz April 4 Late 2023"]
[White "Fiorito, Francisco"]
[Black "Lopez Del Alamo, Antonio"]
[WhiteFideId "180165"]
[BlackFideId "2227339"]
[WhiteElo "2341"]
[BlackElo "2175"]
[Result "1-0"]
[Round "06"]
[TimeControl "180+2"]
[Date "2023.04.04"]
[WhiteClock "0:00:30"]
[BlackClock "0:00:02"]

1. d4 {[%clk 0:03:00]}  Nf6 {[%clk 0:02:55]} 2. Bf4 {[%clk 0:03:00]}  d5 {[%clk 0:02:54]} 3. e3 {[%clk 0:03:00]}  e6 {[%clk 0:02:55]} 4. Nf3 {[%clk 0:02:59]}  Bd6 {[%clk 0:02:55]} 5. Bg3 {[%clk 0:02:59]}  O-O {[%clk 0:02:55]} 6. Bd3 {[%clk 0:02:59]}  c5 {[%clk 0:02:55]} 7. c3 {[%clk 0:02:59]}  Nc6 {[%clk 0:02:55]} 8. Nbd2 {[%clk 0:02:56]}  Qc7 {[%clk 0:02:52]} 9. dxc5 {[%clk 0:02:55]}  Bxg3 {[%clk 0:02:51]} 10. hxg3 {[%clk 0:02:56]}  e5 {[%clk 0:02:51]} 11. e4 {[%clk 0:02:45]}  d4 {[%clk 0:02:50]} 12. cxd4 {[%clk 0:02:42]}  Nxd4 {[%clk 0:02:49]} 13. Nxd4 {[%clk 0:02:42]}  exd4 {[%clk 0:02:49]} 14. Qc2 {[%clk 0:02:35]}  h6 {[%clk 0:02:47]} 15. O-O {[%clk 0:02:33]}  Ng4 {[%clk 0:02:41]} 16. Nf3 {[%clk 0:02:30]}  Rd8 {[%clk 0:02:36]} 17. Rfe1 {[%clk 0:02:29]}  Be6 {[%clk 0:02:34]} 18. b4 {[%clk 0:02:28]}  Rac8 {[%clk 0:02:14]} 19. Rac1 {[%clk 0:02:27]}  Qe7 {[%clk 0:02:00]} 20. Qb2 {[%clk 0:02:24]}  a6 {[%clk 0:01:45]} 21. Rcd1 {[%clk 0:02:14]}  Rc7 {[%clk 0:01:25]} 22. e5 {[%clk 0:02:02]}  Rcd7 {[%clk 0:01:19]} 23. Re4 {[%clk 0:01:59]}  h5 {[%clk 0:01:07]} 24. Rde1 {[%clk 0:01:53]}  g6 {[%clk 0:01:04]} 25. Rf4 {[%clk 0:01:40]}  Bd5 {[%clk 0:00:58]} 26. Qe2 {[%clk 0:01:21]}  Bxf3 {[%clk 0:00:54]} 27. gxf3 {[%clk 0:01:17]}  Nh6 {[%clk 0:00:49]} 28. Rf6 {[%clk 0:01:16]}  Kg7 {[%clk 0:00:44]} 29. f4 {[%clk 0:01:15]}  Ng8 {[%clk 0:00:44]} 30. Rb6 {[%clk 0:01:13]}  Qe8 {[%clk 0:00:40]} 31. Qe4 {[%clk 0:01:12]}  Ne7 {[%clk 0:00:40]} 32. Rd6 {[%clk 0:01:05]}  Nc6 {[%clk 0:00:37]} 33. a3 {[%clk 0:01:04]}  Rxd6 {[%clk 0:00:35]} 34. cxd6 {[%clk 0:01:04]}  Qe6 {[%clk 0:00:33]} 35. Rc1 {[%clk 0:01:02]}  h4 {[%clk 0:00:30]} 36. Kg2 {[%clk 0:01:00]}  hxg3 {[%clk 0:00:29]} 37. fxg3 {[%clk 0:00:58]}  Rh8 {[%clk 0:00:30]} 38. Rg1 {[%clk 0:00:43]}  Qa2+ {[%clk 0:00:27]} 39. Qe2 {[%clk 0:00:38]}  Qxa3 {[%clk 0:00:25]} 40. e6 {[%clk 0:00:34]}  fxe6 {[%clk 0:00:15]} 41. Qxe6 {[%clk 0:00:34]}  Qb2+ {[%clk 0:00:14]} 42. Kf3 {[%clk 0:00:33]}  Qd2 {[%clk 0:00:14]} 43. Qxg6+ {[%clk 0:00:33]}  Kf8 {[%clk 0:00:14]} 44. Qf6+ {[%clk 0:00:32]}  Kg8 {[%clk 0:00:14]} 45. Bc4+ {[%clk 0:00:32]}  Kh7 {[%clk 0:00:13]} 46. Rh1+ {[%clk 0:00:32]}  Qh2 {[%clk 0:00:02]} 47. Rxh2# {[%clk 0:00:30]} 1-0


[Site "https://www.chess.com"]